[Event "Kezmarok Chess Open 2022"]
[Site "Kezmarok"]
[Date "2022.09.25"]
[Round "3.4"]
[White "Kovac, Lubomir"]
[Black "Jablonicky, Martin"]
[Result "0-1"]
[ECO "A57"]
[WhiteElo "2091"]
[BlackElo "2344"]
[Annotator "TA"]
[PlyCount "60"]
[EventDate "2022.09.24"]
[EventType "swiss"]
[EventCountry "SVK"]
[SourceTitle "playchess.com"]
[Source "ChessBase"]
[SourceQuality "1"]
[TimeControl "40/5400+30:1800+30"]

{[%evp 14,60,33,0,2,5,8,7,0,0,7,0,10,0,0,8,11,14,8,1,7,0,12,-10,-5,-11,-8,-11,-10,-10,-20,-92,-88,-105,-45,-62,-59,-154,-146,-150,-164,-543,-487,-1271,-1242,-29993,-29994,-29994,-29995]} 1. d4 {[%emt 0:00:04]} Nf6 {[%emt 0:00:06]} 2. c4 {[%emt 0:00:10]} c5 {[%emt 0:00:20]} 3. d5 {[%emt 0:00:20]} b5 {[%emt 0:00:11]} 4. cxb5 {[%emt 0:00:40]} a6 {[%emt 0:00:05]} 5. b6 {[%emt 0:00:43]} Qxb6 {[%emt 0:00:56]} 6. Nc3 {[%emt 0:02:38]} d6 {[%emt 0:00:17]} 7. a4 {[%emt 0:00:36][%cal Ba2a4,Ba4a5][%mdl 32]} g6 {[%emt 0:00:25]} 8. a5 {[%emt 0:00:12]} Qb7 {[%emt 0:00:40] A57: Benko/Volga Gambit.} 9. e4 {[%emt 0:00:35]} Bg7 {[%emt 0:00:21]} 10. Be2 {[%emt 0:03:34]} O-O {[%emt 0:00:10] The position is equal.} 11. Nf3 {[%emt 0:00:24][%cal Bg1f3,Bf3d2,Bd2c4,Bc4b6][%mdl 32]} Bg4 {[%emt 0:02:11]} 12. Nd2 {[%emt 0:00:18]} Bxe2 {[%emt 0:00:35]} 13. Qxe2 {[%emt 0:01:21]} Nbd7 {[%emt 0:00:04]} 14. Nc4 {[%emt 0:02:00]} Ne8 {[%emt 0:00:29]} 15. O-O {[%emt 0:02:14]} Nc7 {[%emt 0:00:03]} 16. Na4 {[%emt 0:06:34]} Nb5 {[%emt 0:04:05]} 17. Nab6 {[%emt 0:00:18]} Nxb6 {[%emt 0:00:35]} 18. Nxb6 {[%emt 0:01:22]} Rae8 {[%emt 0:00:07] [#]} 19. Bf4 $146 {[%emt 0:03:07]} ({Predecessor:} 19. Qg4 f5 20. Qh3 Nd4 21. Bh6 Bxh6 22. Qxh6 fxe4 23. Rae1 Rf7 24. Rxe4 Nb3 25. Ra4 Nxa5 26. Rxa5 Qxb6 {0-1 (40) Pricopie,S (1616)-Vaculik,J (1850) Prague 2012}) 19... e6 {[%emt 0:03:22] [#] Strongly threatening ...exd5.} 20. Qd2 {[%emt 0:02:23]} exd5 {[%emt 0:00:31]} 21. exd5 {[%emt 0:00:18]} Re4 {[%emt 0:00:49]} 22. Be3 {[%emt 0:05:45]} (22. Rfe1 $11 {remains equal.} Rfe8 23. f3 Bd4+ 24. Kf1) 22... Rfe8 {[%emt 0:01:20]} 23. Ra4 {[%emt 0:05:45]} Nd4 {[%emt 0:11:24] Black is much more active. The white rooks are badly placed.} (23... Bd4 $17 {[%cal Re4e3]} 24. Bxd4 Nxd4) 24. Qd3 {[%emt 0:04:17]} f5 {[%emt 0:00:39][%cal Bf7f5,Bf5f4][%mdl 32]} 25. b3 {[%emt 0:05:12] [#]} ({White should play} 25. Rc4 $1 $15) 25... f4 $1 $36 {[%emt 0:05:02][%mdl 2048] Black has strong initiative.} 26. Bxd4 {[%emt 0:00:09]} Bxd4 {[%emt 0:00:03]} ({Not} 26... Rxd4 27. Rxd4 Bxd4 28. Kh1 $11) 27. Qf3 $2 {[%emt 0:01:22]} (27. Ra2 {is more resistant.}) 27... Qe7 $19 {[%emt 0:05:40] And now ...Re1 would win.} 28. h3 {[%emt 0:01:09]} (28. Ra2 $142 Re1 29. g4 fxg3 30. hxg3) 28... Re1 {[%emt 0:00:36] ( -> ...Rxf1+)} 29. Rxe1 {[%emt 0:00:11]} Qxe1+ {[%emt 0:00:10]} 30. Kh2 {[%emt 0:00:08]} Bxf2 {[%emt 0:00:31] Weighted Error Value: White=0.87/Black=0.04 (flawless)} 0-1

[Event "Kezmarok Chess Open 2022"]
[Site "Kezmarok"]
[Date "2022.09.25"]
[Round "3.5"]
[White "Wisniewski, Michal"]
[Black "Walter, Ema"]
[Result "1/2-1/2"]
[ECO "A09"]
[WhiteElo "2152"]
[BlackElo "2062"]
[Annotator "TA"]
[PlyCount "81"]
[EventDate "2022.09.24"]
[EventType "swiss"]
[EventCountry "SVK"]
[SourceTitle "playchess.com"]
[Source "ChessBase"]
[SourceQuality "1"]
[TimeControl "40/5400+30:1800+30"]

{[%evp 9,81,-62,-63,-71,-18,-49,16,6,20,-16,-14,-36,-26,-39,-34,-70,-77,-76,-6,-18,-29,-18,-16,-26,0,-1,13,0,56,52,60,57,55,47,65,51,55,9,16,-25,0,-19,-14,-8,-6,-6,-6,-8,27,8,18,12,142,22,57,20,10,19,27,9,11,18,23,13,13,13,21,6,29,13,15,15,20,20]} 1. Nf3 d5 2. c4 d4 3. d3 Nc6 4. Nbd2 e5 5. g3 Be7 6. Bg2 {[#] A09: Réti Opening: 1 Nf3 d5 2 c4.} Be6 $146 ({Black should play} 6... Nf6 $17) ({Predecessor:} 6... a5 7. a3 a4 8. b4 Nf6 9. b5 Nb8 10. Nxe5 O-O 11. O-O Re8 12. Nef3 Nbd7 13. Nxd4 {1-0 (13) Heck,N (2249)-Hirn,O (2188) Magdeburg 2022}) 7. a3 Qd7 (7... a5 $1 $15) 8. b4 f6 9. Qa4 Nh6 10. Ne4 Nf7 $1 11. Rb1 O-O 12. Nc5 Bxc5 13. bxc5 Ncd8 ({Black should try} 13... Nfd8 $17) 14. Qxd7 $11 Bxd7 15. Nd2 Rb8 16. O-O Bc6 17. Bd5 Bd7 (17... Re8 {with more complications.} 18. f4 b6 19. Ne4 f5) 18. Nb3 c6 (18... Bh3 $11) 19. Bg2 $1 $14 Ne6 20. a4 b6 21. Ba3 Rfc8 $1 22. cxb6 axb6 {[%cal Ba7b6,Bb6b5,Bb5b4][%mdl 32]} 23. c5 (23. f4 $14) 23... b5 $11 24. a5 (24. Na5 $5 {[%cal Ra4b5]}) 24... b4 25. Bb2 Rb5 26. Rfc1 Nfd8 {[%cal Bf7d8,Bd8b7,Bb7a5,Ba5b3][%mdl 32]} 27. e3 $1 {[%cal Re3d4]} Nb7 28. exd4 {[#] Black must now prevent d5.} exd4 {[%cal Rb7c5]} 29. Bxd4 {[%cal Bb2d4,Bd4e3,Be3d2][%mdl 32]} Nxa5 30. Be3 {Strongly threatening Nxa5.} Ra8 (30... Nxb3 $11 {remains equal.} 31. Rxb3 Ra8) 31. d4 (31. Ra1 $16) 31... Nc7 32. Bd2 Nxb3 33. Rxb3 Ne6 34. Be3 Ra3 35. Rcb1 Nc7 36. Bf1 ({Avoid the trap} 36. Rxb4 $2 Rxb4 37. Re1 (37. Rxb4 {is a self mate.} Ra1+) 37... Nd5 $19) 36... Rxb3 37. Rxb3 Rb7 38. Bd2 Ne6 39. Rxb4 Rxb4 40. Bxb4 Nxd4 41. f4 {Weighted Error Value: White=0.19 (very precise) /Black=0.23 (precise)} 1/2-1/2

[Event "Kezmarok Chess Open 2022"]
[Site "Kezmarok"]
[Date "2022.09.25"]
[Round "3.6"]
[White "Fizer, Marek"]
[Black "Sosovickova, Jana"]
[Result "0-1"]
[ECO "C77"]
[WhiteElo "1963"]
[BlackElo "2039"]
[Annotator "TA"]
[PlyCount "54"]
[EventDate "2022.09.24"]
[EventType "swiss"]
[EventCountry "SVK"]
[SourceTitle "playchess.com"]
[Source "ChessBase"]
[SourceQuality "1"]
[TimeControl "40/5400+30:1800+30"]

{[%evp 13,54,14,24,16,62,16,12,3,3,0,5,4,0,0,4,7,10,-22,0,0,0,12,7,0,0,0,2,-43,-43,-32,-45,-230,-83,-113,-146,-172,-174,-337,-348,-315,-288,-381,-389]} 1. e4 e5 2. Nf3 Nc6 3. Bb5 a6 4. Ba4 Nf6 5. d3 b5 6. Bb3 Bc5 7. O-O O-O 8. c3 {C78: Ruy Lopez: Archangelsk and Möller Defences.} h6 (8... d6 $11) 9. Nbd2 (9. d4 $14 {was preferrable.} Bb6 10. Nxe5) 9... d6 10. h3 {The position is equal.} Bb6 11. Re1 Ne7 12. Nf1 Ng6 13. Ng3 Re8 14. a4 Rb8 {[%cal Ba8b8,Bb8b7,Bb7d7][%mdl 32]} 15. Be3 c5 16. Qd2 Be6 17. Bxe6 {[#]} Rxe6 $146 ({Predecessor:} 17... fxe6 18. d4 exd4 19. cxd4 Ba5 20. Qc2 Bxe1 21. e5 cxd4 22. Rxe1 dxe3 23. Qxg6 exf2+ 24. Kxf2 dxe5 25. Rxe5 {0-1 (30) Benadikar,S (1872)-Narayanan,S (2370) Mumbai 2009}) 18. a5 Ba7 19. b4 Rb7 20. bxc5 dxc5 21. Nf5 {[%cal Oe3h6]} Rd7 22. Bxh6 $2 {[#]} gxh6 (22... Rxd3 $19 {is more deadly.} 23. Qg5 gxh6 24. Nxh6+ Kf8) 23. Qxh6 {[%csl Gf5][%cal Rh6g7]} Qf8 {Inhibits Qg7+. Hoping for ...Qxh6.} 24. Qg5 {[%cal Of3e5]} (24. Ng5 $2 Rc6 25. Rad1 Qxh6 26. Nxh6+ Kf8) 24... Nh7 25. Qh5 {[#]} (25. Qg4) 25... Nf4 $1 $19 ({Don't go for} 25... Rxd3 $2 26. Nh6+ Kh8 27. Ng5 Nxg5 28. Nxf7+ Kg7 29. Nxg5 $19) 26. Qh4 {[%cal Of3e5]} Qd8 ({Not} 26... Rxd3 27. Red1 c4 28. Nxe5 $19) 27. Nh6+ Kf8 {Weighted Error Value: White=0.39/Black=0.15 (very precise)} 0-1

[Event "Kezmarok Chess Open 2022"]
[Site "Kezmarok"]
[Date "2022.09.25"]
[Round "3.7"]
[White "Kapolkova, Greta"]
[Black "Elias, David"]
[Result "0-1"]
[ECO "B52"]
[WhiteElo "1723"]
[BlackElo "1988"]
[Annotator "NA RC"]
[PlyCount "60"]
[EventDate "2022.09.24"]
[EventType "swiss"]
[EventCountry "SVK"]
[SourceTitle "playchess.com"]
[Source "ChessBase"]
[SourceQuality "1"]
[TimeControl "40/5400+30:1800+30"]

1. e4 {[%emt 0:00:09]} c5 {[%emt 0:00:52]} 2. Nf3 {[%emt 0:00:06]} d6 {[%emt 0:00:11]} 3. Bb5+ {[%emt 0:00:11]} Bd7 {[%emt 0:00:29]} 4. Bxd7+ {[%emt 0:00:40]} Qxd7 {[%emt 0:00:02]} 5. d4 {[%emt 0:01:01]} cxd4 {[%emt 0:01:15]} 6. Nxd4 {[%emt 0:00:21]} Nf6 {[%emt 0:00:07]} 7. Nc3 {[%emt 0:00:16]} g6 {[%emt 0:00:42]} 8. Be3 {[%emt 0:01:58]} Ng4 {[%emt 0:03:09]} 9. Bc1 {[%emt 0:05:01]} Bg7 {[%emt 0:00:50]} 10. f3 {[%emt 0:08:19]} Nf6 {[%emt 0:01:14]} 11. Be3 {[%emt 0:01:11]} O-O {[%emt 0:00:17]} 12. Qd2 {[%emt 0:00:47]} Nc6 {[%emt 0:00:21]} 13. O-O-O {[%emt 0:03:09]} Ne5 {[%emt 0:03:38]} 14. g4 {[%emt 0:05:07]} Nc4 {[%emt 0:00:10]} 15. Qd3 {[%emt 0:00:48]} Nxe3 {[%emt 0:00:06]} 16. Qxe3 {[%emt 0:00:06]} Rfc8 {[%emt 0:00:57]} 17. h4 {[%emt 0:10:37]} h5 {[%emt 0:00:29]} 18. gxh5 {[%emt 0:01:25]} Nxh5 {[%emt 0:00:10]} 19. Rd3 {[%emt 0:06:18]} Rc4 {[%emt 0:03:10]} 20. Rhd1 {[%emt 0:05:28]} Rac8 {[%emt 0:01:08]} 21. Nde2 {[%emt 0:25:06]} b5 {[%emt 0:02:22]} 22. R3d2 {[%emt 0:02:27]} Kh7 {[%emt 0:14:17]} 23. f4 {[%emt 0:03:07]} b4 {[%emt 0:02:31]} 24. b3 {[%emt 0:02:51]} bxc3 {[%emt 0:02:34]} 25. Rd5 {[%emt 0:03:13]} R4c6 {[%emt 0:01:56]} 26. e5 {[%emt 0:01:28]} Qb7 {[%emt 0:01:41]} 27. R1d4 {[%emt 0:05:22]} dxe5 {[%emt 0:00:33]} 28. fxe5 {[%emt 0:00:44]} Bh6 {[%emt 0:00:20]} 29. Nf4 {[%emt 0:00:39]} Nxf4 {[%emt 0:00:48]} 30. Rxf4 {[%emt 0:01:31]} Rf6 {[%emt 0:00:38]} 0-1

[Event "Kezmarok Chess Open 2022"]
[Site "Kezmarok"]
[Date "2022.09.25"]
[Round "3.8"]
[White "Juracak, David"]
[Black "Belus, Benjamin"]
[Result "1/2-1/2"]
[ECO "D37"]
[WhiteElo "1708"]
[BlackElo "1932"]
[Annotator "TA"]
[PlyCount "95"]
[EventDate "2022.09.24"]
[EventType "swiss"]
[EventCountry "SVK"]
[SourceTitle "playchess.com"]
[Source "ChessBase"]
[SourceQuality "1"]
[TimeControl "40/5400+30:1800+30"]

{[%evp 11,95,0,8,0,0,5,8,0,6,-16,23,-11,16,-8,33,-16,51,21,28,17,58,55,62,19,83,67,74,36,41,31,25,24,26,25,47,47,39,41,51,20,36,39,39,41,62,23,28,0,65,65,61,64,63,72,172,49,49,49,60,60,62,63,61,56,54,31,31,31,54,31,34,27,27,27,34,34,34,27,32,27,27,27,32,27,34,26]} 1. d4 d5 2. c4 e6 3. Nf3 Nf6 4. Nc3 Be7 5. e3 O-O 6. b3 b6 7. Bb2 $1 {[%mdl 4] is currently scoring better than 7.Bd3. D37: Queen's Gambit Declined: 5 Bf4.} (7. cxd5 {seems wilder.} Bb4 8. Bb2 Nxd5 9. Rc1) 7... Bb7 8. Rc1 Nbd7 9. cxd5 {The position is equal.} Nxd5 10. Bd3 c5 11. O-O Rc8 12. Qe2 {[#]} Bf6 $146 ({Predecessor:} 12... N7f6 13. Rfd1 cxd4 14. Nxd5 Nxd5 15. Nxd4 Rxc1 16. Rxc1 Nb4 17. Bb1 Qd5 18. Qg4 f5 19. Nxf5 {1-0 (19) Ontiveros,J (1730)-Kjartansson,O (1984) Reykjavik 2015}) 13. Rfd1 (13. Nxd5 $14 exd5 14. Rfd1) 13... Qe7 (13... Nxc3 $11 14. Rxc3 Qe7) 14. Ne4 cxd4 15. Nxf6+ ({But not} 15. Bxd4 Bxd4 16. Nxd4 f5 $15) (15. exd4 Nf4 16. Qe3 Nxd3 17. Qxd3 Qb4 $15) 15... N7xf6 16. Nxd4 Rfd8 17. Nb5 Ba8 (17... Rxc1 $11 18. Rxc1 a6) 18. Ba3 {A strong pair of Bishops.} Qb7 {[#] White must now prevent ...Rxc1.} 19. Nd6 {White is more active.} Rxd6 20. Rxc8+ Qxc8 21. Bxd6 {aiming for e4.} Nc3 {[%csl LRd1,LRe2] Against e4} 22. Qc2 Qb7 {[%csl Ga8][%cal Rb7g2] [#]} 23. f3 Nxd1 24. Qxd1 Qd5 25. Be7 Ne8 26. Qc2 f5 27. Bc4 Qe5 28. Kf2 (28. Bg5 $5 {[%cal Rc2d1]}) 28... Bd5 (28... Nf6 {looks sharper.} 29. Qd2 Nd5 30. Bxd5 Qxd5 31. Qc3 Bc6) 29. Bb5 (29. Bf1 {feels hotter.} Nf6 30. h3 h6 31. Qc1) 29... Qc7 {Inhibits Qc8.} ({Black should play} 29... Nd6 $11) 30. Qxc7 $14 Nxc7 {[%mdl 4096] Endgame KBB-KBN} 31. Bd3 Bc6 32. Bd6 Nb5 (32... Nd5 $16 {was worth a try.}) 33. Bxb5 (33. Be5 $18) 33... Bxb5 $18 {KB-KB} 34. Bb8 a5 35. Bc7 a4 36. bxa4 Bxa4 37. Bxb6 Kf7 38. e4 fxe4 39. fxe4 Ke7 40. Ke3 Kd6 41. Bd4 e5 42. Bc3 g6 43. Bb4+ Ke6 44. g3 Bc6 45. Kd3 Kf6 46. Bf8 Ke6 47. Bg7 Kd6 48. a3 {Weighted Error Value: White=0.19 (very precise) /Black=0.19 (very precise)} 1/2-1/2

[Event "Kezmarok Chess Open 2022"]
[Site "Kezmarok"]
[Date "2022.09.25"]
[Round "3.9"]
[White "Bochnickova, Simona"]
[Black "Fizerova, Lucie"]
[Result "1-0"]
[ECO "C42"]
[WhiteElo "1903"]
[BlackElo "1779"]
[Annotator "TA"]
[PlyCount "53"]
[EventDate "2022.09.24"]
[EventType "swiss"]
[EventCountry "SVK"]
[SourceTitle "playchess.com"]
[Source "ChessBase"]
[SourceQuality "1"]
[TimeControl "40/5400+30:1800+30"]

{[%evp 14,53,29,18,34,34,39,12,20,13,22,0,0,0,1,0,8,-99,-96,-94,-92,-89,-88,-91,-85,-107,-106,-104,-79,-120,-102,-86,0,-32,62,-24,179,181,438,420,955,724]} 1. e4 e5 2. Nf3 Nf6 3. Nc3 Bb4 4. Nxe5 O-O 5. Nd3 Bxc3 6. dxc3 Nxe4 7. Be2 d5 {7...Re8 is the fancy move.} 8. O-O Nc6 {[%cal Bb8c6,Bc6e7,Be7f5,Bf5h4,Bh4g2][%mdl 32] C42: Petroff Defence: 3 Nxe5 and unusual White 3rd moves.} 9. Be3 {[#]} Bf5 $146 ({Predecessor:} 9... Be6 10. f3 Nd6 11. Nf4 Nf5 12. Bf2 Qd6 13. Qd2 Rad8 14. Bd3 Ne5 15. Rfe1 Nxd3 16. cxd3 Rfe8 17. d4 Bd7 18. Nd3 c6 19. Rxe8+ Rxe8 20. Re1 Rxe1+ 21. Qxe1 f6 22. Bg3 {½-½ (22) Nordstrom,F (2178)-Winge,S (2275) Sweden 1999}) 10. Bf3 Re8 {The position is equal.} 11. Nf4 Ne7 12. Qd4 Nf6 13. Qd2 c6 14. Rad1 Bg4 15. Bd4 (15. Bxg4 $11 Nxg4 16. Bd4) 15... Bxf3 $17 16. gxf3 {[#] Strongly threatening Bxf6.} Nf5 17. Kh1 Nh4 {Pair of Knights!} 18. Qd3 Qd6 19. Ng2 Nxg2 20. Kxg2 Nh5 {[#] Hoping for ...Nf4+.} 21. Kh1 Re6 22. Rg1 Rh6 (22... g6 $17 {White must now prevent ...Nf4.} 23. Be3 b5) 23. Qf5 Re8 (23... Nf6 $15 24. Be5 Qe6 25. Qxe6 fxe6) 24. Rde1 {White is more active.} (24. Qg5 $14) 24... Ree6 $2 (24... Nf6 $11 {and Black has nothing to worry.} 25. f4 Rxe1 26. Rxe1 Qd8) 25. Be3 $18 {The board is on fire.} Rhf6 (25... Qe7) 26. Qxh5 Re5 (26... b6 $142 27. c4 h6 28. cxd5 Qxd5 29. Qxd5 cxd5) 27. Qg4 {Weighted Error Value: White=0.24 (precise) /Black=0.44} 1-0

[Event "Kezmarok Chess Open 2022"]
[Site "Kezmarok"]
[Date "2022.09.25"]
[Round "3.10"]
[White "Ropovik, Samuel"]
[Black "Striskova, Lucia"]
[Result "1-0"]
[ECO "C47"]
[WhiteElo "1497"]
[BlackElo "1866"]
[Annotator "NA RC COMBH"]
[PlyCount "55"]
[EventDate "2022.09.24"]
[EventType "swiss"]
[EventCountry "SVK"]
[SourceTitle "playchess.com"]
[Source "ChessBase"]
[SourceQuality "1"]
[TimeControl "40/5400+30:1800+30"]

1. e4 {[%emt 0:00:17]} e5 {[%emt 0:00:06]} 2. Nf3 {[%emt 0:00:30]} Nc6 {[%emt 0:00:11]} 3. Nc3 {[%emt 0:01:21]} Nf6 {[%emt 0:00:14]} 4. d4 {[%emt 0:00:02]} exd4 {[%emt 0:00:08]} 5. Nxd4 {[%emt 0:00:35]} Bb4 {[%emt 0:00:05]} 6. Nxc6 {[%emt 0:00:37]} bxc6 {[%emt 0:00:04]} 7. Bd3 {[%emt 0:00:29]} O-O {[%emt 0:00:08]} 8. O-O {[%emt 0:00:12]} d5 {[%emt 0:00:04]} 9. Bd2 {[%emt 0:00:31]} Re8 {[%emt 0:03:38]} 10. Nxd5 {[%emt 0:01:46]} cxd5 {[%emt 0:00:11]} 11. Bxb4 {[%emt 0:01:02]} dxe4 {[%emt 0:01:13]} 12. Be2 {[%emt 0:04:08]} Nd5 {[%emt 0:02:47]} 13. Bd2 {[%emt 0:13:06]} Rb8 {[%emt 0:03:22]} 14. c4 {[%emt 0:02:44]} Nb4 {[%emt 0:00:55]} 15. Bxb4 {[%emt 0:09:29]} Rxb4 {[%emt 0:00:39]} 16. Qxd8 {[%emt 0:10:20]} Rxd8 {[%emt 0:00:09]} 17. Rad1 {[%emt 0:00:11]} Re8 {[%emt 0:01:21]} 18. b3 {[%emt 0:00:44]} Be6 {[%emt 0:01:38]} 19. Rd4 {[%emt 0:05:17]} f5 {[%emt 0:01:02]} 20. f3 {[%emt 0:01:08]} exf3 {[%emt 0:02:44]} 21. Bxf3 {[%emt 0:01:18]} g6 {[%emt 0:00:48]} 22. Bc6 {[%emt 0:07:54]} Reb8 {[%emt 0:06:25]} 23. Re1 {[%emt 0:02:29]} Kf7 {[%emt 0:02:22]} 24. Bd7 {[%emt 0:01:53]} R4b6 {[%emt 0:02:16]} 25. Bxe6+ {[%emt 0:00:31]} Rxe6 {[%emt 0:00:05]} 26. Rd7+ {[%emt 0:00:23]} Kf6 {[%emt 0:00:06]} 27. Rxe6+ {[%emt 0:00:30]} Kxe6 {[%emt 0:05:02]} 28. Rxc7 {[%emt 0:00:15]} 1-0

[Event "Kezmarok Chess Open 2022"]
[Site "Kezmarok"]
[Date "2022.09.25"]
[Round "3.11"]
[White "Mirowska, Oliwia"]
[Black "Velychko, Semen"]
[Result "1/2-1/2"]
[ECO "A45"]
[WhiteElo "1856"]
[BlackElo "1604"]
[Annotator "NA RC COMBH"]
[PlyCount "60"]
[EventDate "2022.09.24"]
[EventType "swiss"]
[EventCountry "SVK"]
[SourceTitle "playchess.com"]
[Source "ChessBase"]
[SourceQuality "1"]
[TimeControl "40/5400+30:1800+30"]

1. d4 {[%emt 0:08:54]} Nf6 {[%emt 0:00:14]} 2. Bf4 {[%emt 0:00:12]} g6 {[%emt 0:00:38]} 3. e3 {[%emt 0:00:22]} Bg7 {[%emt 0:00:12]} 4. Nf3 {[%emt 0:00:09]} O-O {[%emt 0:00:18]} 5. h3 {[%emt 0:00:21]} d5 {[%emt 0:00:27]} 6. c3 {[%emt 0:00:28]} c5 {[%emt 0:00:13]} 7. Bd3 {[%emt 0:01:20]} b6 {[%emt 0:00:39]} 8. Nbd2 {[%emt 0:00:52]} Nc6 {[%emt 0:00:46]} 9. O-O {[%emt 0:00:23]} Nd7 {[%emt 0:01:32]} 10. Bb5 {[%emt 0:06:26]} Bb7 {[%emt 0:02:40]} 11. Nh2 {[%emt 0:00:43]} e5 {[%emt 0:01:51]} 12. dxe5 {[%emt 0:00:16]} Ndxe5 {[%emt 0:00:28]} 13. Ndf3 {[%emt 0:00:56]} Nxf3+ {[%emt 0:04:54]} 14. Qxf3 {[%emt 0:05:21]} Ne5 {[%emt 0:04:47]} 15. Qg3 {[%emt 0:00:44]} Qe7 {[%emt 0:01:49]} 16. Ng4 {[%emt 0:01:43]} f6 {[%emt 0:08:36]} 17. Bh6 {[%emt 0:07:29]} Nxg4 {[%emt 0:01:43]} 18. Bxg7 {[%emt 0:00:28]} Kxg7 {[%emt 0:00:14]} 19. Qxg4 {[%emt 0:02:33]} a6 {[%emt 0:01:36]} 20. Qd7 {[%emt 0:06:29]} Qxd7 {[%emt 0:00:09]} 21. Bxd7 {[%emt 0:00:09]} Rfd8 {[%emt 0:00:28]} 22. Bg4 {[%emt 0:02:53]} Bc8 {[%emt 0:01:56]} 23. Bf3 {[%emt 0:02:10]} Be6 {[%emt 0:00:43]} 24. Rfd1 {[%emt 0:00:48]} Ra7 {[%emt 0:00:29]} 25. Kf1 {[%emt 0:08:51]} Rad7 {[%emt 0:01:38]} 26. Ke1 {[%emt 0:01:06]} f5 {[%emt 0:01:33]} 27. b3 {[%emt 0:03:38]} Kf6 {[%emt 0:02:20]} 28. Ke2 {[%emt 0:03:32]} b5 {[%emt 0:02:25]} 29. Rac1 {[%emt 0:02:13]} g5 {[%emt 0:00:48]} 30. g4 {[%emt 0:02:24]} h6 {[%emt 0:05:04]} 1/2-1/2

[Event "Kezmarok Chess Open 2022"]
[Site "Kezmarok"]
[Date "2022.09.25"]
[Round "3.12"]
[White "Horbalova, Ivana"]
[Black "Janik, Marek Tobias"]
[Result "0-1"]
[ECO "A04"]
[WhiteElo "1286"]
[BlackElo "1823"]
[Annotator "NA RC COMBH"]
[PlyCount "75"]
[EventDate "2022.09.24"]
[EventType "swiss"]
[EventCountry "SVK"]
[SourceTitle "playchess.com"]
[Source "ChessBase"]
[SourceQuality "1"]
[TimeControl "40/5400+30:1800+30"]

1. Nf3 c5 2. c4 Nc6 3. Nc3 e5 4. d3 g6 5. g3 Bg7 6. Ne4 d6 7. Bg2 Nge7 8. Bg5 h6 9. Bf6 O-O 10. Nfd2 Bf5 11. Bxg7 Kxg7 12. h4 Bxe4 13. Nxe4 f5 14. Nc3 Nd4 15. e3 Ndc6 16. f4 h5 17. Qe2 Rb8 18. Bf3 a6 19. Bxc6 Nxc6 20. Nd5 Re8 21. Kf2 b5 22. a3 bxc4 23. dxc4 Rb3 24. Qc2 Qb8 25. Rab1 Qb7 26. Rhd1 Rb8 27. Rd2 exf4 28. Nxf4 Ne5 29. Nd5 Rxa3 30. bxa3 Qxb1 31. Nf4 Ng4+ 32. Ke2 Qg1 33. Qc3+ Kh7 34. Rxd6 Qf2+ 35. Kd3 Ne5+ 36. Qxe5 Rb3+ 37. Qc3 Rxc3+ 38. Kxc3 0-1

[Event "Kezmarok Chess Open 2022"]
[Site "Kezmarok"]
[Date "2022.09.25"]
[Round "3.14"]
[White "Rak, Martin"]
[Black "Smetana, Peter"]
[Result "1/2-1/2"]
[ECO "B54"]
[WhiteElo "1805"]
[BlackElo "1715"]
[Annotator "NA RC COMBH"]
[PlyCount "81"]
[EventDate "2022.09.24"]
[EventType "swiss"]
[EventCountry "SVK"]
[SourceTitle "playchess.com"]
[Source "ChessBase"]
[SourceQuality "1"]
[TimeControl "40/5400+30:1800+30"]

1. e4 {[%emt 0:00:09]} c5 {[%emt 0:01:43]} 2. Nf3 {[%emt 0:00:13]} d6 {[%emt 0:00:20]} 3. d4 {[%emt 0:00:26]} cxd4 {[%emt 0:00:26]} 4. Nxd4 {[%emt 0:01:27]} Nc6 {[%emt 0:00:08]} 5. c4 {[%emt 0:00:13]} g6 {[%emt 0:01:13]} 6. Nc3 {[%emt 0:01:19]} Bg7 {[%emt 0:01:00]} 7. Be3 {[%emt 0:00:21]} Qb6 {[%emt 0:01:29]} 8. Nb3 {[%emt 0:04:18]} Bxc3+ {[%emt 0:02:18]} 9. bxc3 {[%emt 0:00:20]} Qc7 {[%emt 0:00:32]} 10. Bd4 {[%emt 0:13:02]} e5 {[%emt 0:23:42]} 11. Be3 {[%emt 0:02:06]} Be6 {[%emt 0:01:24]} 12. Qd3 {[%emt 0:02:56]} Kf8 {[%emt 0:10:07]} 13. c5 {[%emt 0:13:01]} dxc5 {[%emt 0:01:50]} 14. Bxc5+ {[%emt 0:00:40]} Kg7 {[%emt 0:00:54]} 15. Bd6 {[%emt 0:00:49]} Qc8 {[%emt 0:01:11]} 16. Nc5 {[%emt 0:16:32]} b6 {[%emt 0:05:55]} 17. Na6 {[%emt 0:04:40]} Qd7 {[%emt 0:01:33]} 18. Rd1 {[%emt 0:03:08]} Nf6 {[%emt 0:05:29]} 19. Qb5 {[%emt 0:04:24]} Rad8 {[%emt 0:20:08]} 20. Bf8+ {[%emt 0:05:28]} Rhxf8 {[%emt 0:00:30]} 21. Rxd7 {[%emt 0:00:22]} Bxd7 {[%emt 0:00:26]} 22. Qb1 {[%emt 0:02:36]} Be6 {[%emt 0:01:59]} 23. Nc7 {[%emt 0:02:19]} Rd6 {[%emt 0:01:44]} 24. Nxe6+ {[%emt 0:01:06]} Rxe6 {[%emt 0:00:09]} 25. Be2 {[%emt 0:02:51]} Rd8 {[%emt 0:00:41]} 26. O-O {[%emt 0:00:19]} Red6 {[%emt 0:00:36]} 27. f3 {[%emt 0:01:15]} Rd2 {[%emt 0:01:56]} 28. Kf2 {[%emt 0:00:26]} Nh5 {[%emt 0:06:25]} 29. g3 {[%emt 0:00:42]} Nf6 {[%emt 0:00:52]} 30. Rd1 {[%emt 0:01:46]} Rxd1 {[%emt 0:01:11]} 31. Bxd1 {[%emt 0:00:01]} Rd2+ {[%emt 0:00:17]} 32. Be2 {[%emt 0:00:08]} Na5 {[%emt 0:00:15]} 33. Ke3 {[%emt 0:00:17]} Rd6 {[%emt 0:00:38]} 34. Qb5 {[%emt 0:01:46]} Nc6 {[%emt 0:01:58]} 35. Qa6 {[%emt 0:02:05]} Nd7 {[%emt 0:02:10]} 36. Qb7 {[%emt 0:03:33]} Ndb8 {[%emt 0:01:46]} 37. f4 {[%emt 0:05:37]} Rd7 {[%emt 0:00:39]} 38. Qc8 {[%emt 0:01:38]} exf4+ {[%emt 0:00:29]} 39. gxf4 {[%emt 0:00:17]} Rd8 {[%emt 0:00:26]} 40. Qh3 {[%emt 0:02:27]} Ne7 {[%emt 0:01:43]} 41. Bd3 $16 {[%emt 0:33:05]} 1/2-1/2